fUST/lending_fUST_20240804
["ID","MTS","AMOUNT","RATE_DAILY","PERIOD"]
[334062556,1722715840916,-469.47179787,0.00013698,2]
[334062559,1722715840926,-500.0,0.00013698,2]
[334062562,1722715840935,-500.0,0.00013698,2]
[334062565,1722715840949,-500.0,0.00013698,2]
[334062568,1722715840959,-500.0,0.00013698,2]
[334062571,1722715840968,-500.0,0.00013698,2]
[334062573,1722715840978,-500.0,0.00013698,2]
[334062575,1722715840988,-626.28381328,0.00013698,2]
[334062577,1722715840997,-500.0,0.00013698,2]
[334062579,1722715841007,-500.0,0.00013698,2]
[334062581,1722715841016,-500.0,0.00013698,2]
[334062583,1722715841025,-506.34448599,0.00013698,2]
[334062585,1722715841034,-500.0,0.00013698,2]
[334062587,1722715841044,-500.0,0.00013698,2]
[334062589,1722715841053,-500.0,0.00013698,2]
[334062591,1722715841063,-500.0,0.00013698,2]
[334062593,1722715841072,-500.0,0.00013698,2]
[334062595,1722715841082,-500.0,0.00013698,2]
[334062597,1722715841091,-500.0,0.00013698,2]
[334062599,1722715841100,-600.0,0.00013698,2]
[334062601,1722715841110,-500.0,0.00013698,2]
[334062603,1722715841119,-665.58,0.00013698,2]
[334062605,1722715841129,-495.70446836,0.00013698,2]
[334062607,1722715841139,-500.0,0.00013698,2]
[334062609,1722715841149,-500.0,0.00013698,2]
[334062611,1722715841159,-500.0,0.00013698,2]
[334062613,1722715841169,-500.0,0.00013698,2]
[334062615,1722715841178,-500.0,0.00013698,2]
[334062617,1722715841188,-503.54419415,0.00013698,2]
[334062619,1722715841203,-151.0,0.00013698,2]
[334062621,1722715841213,-500.0,0.00013698,2]
[334062623,1722715841222,-500.0,0.00013698,2]
[334062625,1722715841231,-500.0,0.00013698,2]
[334062627,1722715841240,-500.0,0.00013698,2]
[334062629,1722715841250,-500.0,0.00013698,2]
[334062631,1722715841260,-500.0,0.00013698,2]
[334062633,1722715841269,-500.0,0.00013698,2]
[334062636,1722715841279,-207.35046671,0.00013698,2]
[334062638,1722715841288,-500.0,0.00013698,2]
[334062640,1722715841298,-192.18361047,0.00013698,2]
[334062642,1722715841307,-500.0,0.00013698,2]
[334062644,1722715841316,-500.0,0.00013698,2]
[334062646,1722715841325,-500.0,0.00013698,2]
[334062648,1722715841335,-500.0,0.00013698,2]
[334062650,1722715841344,-500.0,0.00013698,2]
[334062652,1722715841354,-578.15,0.00013698,2]
[334062654,1722715841363,-507.63589301,0.00013698,2]
[334062656,1722715841372,-500.0,0.00013698,2]
[334062657,1722715841381,-500.0,0.00013698,2]
[334062668,1722715841472,-1606.39,0.00013698,2]
[334062670,1722715841481,-511.58829112,0.00013698,2]
[334062672,1722715841491,-504.23758031,0.00013698,2]
[334062674,1722715841500,-362.02501254,0.00013698,2]
[334062676,1722715841509,-162.12256688,0.00013698,2]
[334062678,1722715841519,-500.0,0.00013698,2]
[334062680,1722715841528,-515.3322998,0.00013698,2]
[334062682,1722715841537,-174.720438,0.00013698,2]
[334062684,1722715841546,-174.720438,0.00013698,2]
[334062686,1722715841555,-545.73,0.00013698,2]
[334062688,1722715841564,-709.74,0.00013698,2]
[334062690,1722715841574,-174.720438,0.00013698,2]
[334062692,1722715841583,-174.720438,0.00013698,2]
[334062694,1722715841592,-153.806402,0.00013698,2]
[334062696,1722715841601,-151.0,0.00013698,2]
[334062698,1722715841610,-200.0,0.00013698,2]
[334062701,1722715841621,-331.83517555,0.00013698,2]
[334062703,1722715841630,-775.73,0.00013698,2]
[334062705,1722715841641,-3897.24,0.00013698,2]
[334062707,1722715841650,-500.0,0.00013698,2]
[334062709,1722715841660,-500.0,0.00013698,2]
[334062711,1722715841669,-500.0,0.00013698,2]
[334062713,1722715841678,-500.0,0.00013698,2]
[334062715,1722715841690,-500.0,0.00013698,2]
[334062717,1722715841703,-500.0,0.00013698,2]
[334062719,1722715841712,-151.0,0.00013698,2]
[334062721,1722715841721,-151.0,0.00013698,2]
[334062723,1722715841730,-151.0,0.00013698,2]
[334062724,1722715841739,-172.91877,0.00013698,2]
[334062726,1722715841748,-172.91877,0.00013698,2]
[334062729,1722715841758,-172.91877,0.00013698,2]
[334062731,1722715841769,-500.0,0.00013698,2]
[334062733,1722715841779,-172.91877,0.00013698,2]
[334062735,1722715841789,-1706.13,0.00013698,2]
[334062737,1722715841800,-511.11563533,0.00013698,2]
[334062739,1722715841810,-500.0,0.00013698,2]
[334062741,1722715841821,-500.0,0.00013698,2]
[334062743,1722715841830,-1328.81,0.00013698,2]
[334062745,1722715841840,-500.0,0.00013698,2]
[334062747,1722715841850,-500.0,0.00013698,2]
[334062749,1722715841859,-500.0,0.00013698,2]
[334062751,1722715841868,-500.0,0.00013698,2]
[334062753,1722715841878,-500.0,0.00013698,2]
[334062755,1722715841888,-500.0,0.00013698,2]
[334062757,1722715841899,-500.0,0.00013698,2]
[334062759,1722715841908,-500.0,0.00013698,2]
[334062761,1722715841917,-500.0,0.00013698,2]
[334062763,1722715841926,-500.0,0.00013698,2]
[334062765,1722715841935,-500.0,0.00013698,2]
[334062767,1722715841948,-500.0,0.00013698,2]
[334062769,1722715841957,-500.0,0.00013698,2]
[334062771,1722715841966,-500.0,0.00013698,2]
[334062773,1722715841976,-500.0,0.00013698,2]
[334062775,1722715841985,-500.0,0.00013698,2]
[334062776,1722715841995,-500.0,0.00013698,2]
[334062777,1722715842003,-500.0,0.00013698,2]
[334062778,1722715842013,-500.0,0.00013698,2]
[334062779,1722715842023,-1294.23,0.00013698,2]
[334062780,1722715842033,-1430.6,0.00013698,2]
[334062781,1722715842042,-500.0,0.00013698,2]
[334062782,1722715842052,-500.0,0.00013698,2]
[334062783,1722715842061,-151.0,0.00013698,2]
[334062784,1722715842071,-500.0,0.00013698,2]
[334062785,1722715842080,-4791.9,0.00013698,2]
[334062786,1722715842089,-372.855279,0.00013698,2]
[334062787,1722715842099,-503.05056989,0.00013698,2]
[334062789,1722715842108,-372.855279,0.00013698,2]
[334062791,1722715842118,-500.0,0.00013698,2]
[334062793,1722715842127,-450.0,0.00013698,2]
[334062795,1722715842136,-1922.39,0.00013698,2]
[334062797,1722715842145,-500.0,0.00013698,2]
[334062799,1722715842155,-500.0,0.00013698,2]
[334062801,1722715842165,-500.0,0.00013698,2]
[334062803,1722715842175,-500.0,0.00013698,2]
[334062804,1722715842185,-504.03913562,0.00013698,2]
[334062806,1722715842198,-500.0,0.00013698,2]
[334062808,1722715842208,-529.11,0.00013698,2]
[334062810,1722715842217,-500.0,0.00013698,2]
[334062812,1722715842227,-786.88,0.00013698,2]
[334062814,1722715842236,-500.0,0.00013698,2]
[334062816,1722715842246,-500.0,0.00013698,2]
[334062818,1722715842255,-500.0,0.00013698,2]
[334062820,1722715842265,-500.0,0.00013698,2]
[334062822,1722715842274,-177.688735,0.00013698,2]
[334062824,1722715842284,-500.0,0.00013698,2]
[334062826,1722715842294,-151.0,0.00013698,2]
[334062829,1722715842304,-235.900059,0.00013698,2]
[334062831,1722715842314,-500.0,0.00013698,2]
[334062832,1722715842324,-500.0,0.00013698,2]
[334062834,1722715842334,-595.9442044,0.00013698,2]
[334062836,1722715842343,-177.688735,0.00013698,2]
[334062838,1722715842352,-500.0,0.00013698,2]
[334062840,1722715842362,-500.0,0.00013698,2]
[334062842,1722715842372,-500.0,0.00013698,2]
[334062844,1722715842381,-371.06766861,0.00013698,2]
[334062847,1722715842391,-500.0,0.00013698,2]
[334062849,1722715842400,-500.0,0.00013698,2]
[334062850,1722715842409,-500.0,0.00013698,2]
[334062852,1722715842419,-500.0,0.00013698,2]
[334062854,1722715842429,-151.0,0.00013698,2]
[334062856,1722715842438,-151.0,0.00013698,2]
[334062858,1722715842448,-500.0,0.00013698,2]
[334062860,1722715842457,-500.0,0.00013698,2]
[334062862,1722715842466,-151.0,0.00013698,2]
[334062864,1722715842475,-151.0,0.00013698,2]
[334062866,1722715842485,-161.66849535,0.00013698,2]
[334062868,1722715842494,-500.0,0.00013698,2]
[334062870,1722715842503,-500.0,0.00013698,2]
[334062872,1722715842512,-151.0,0.00013698,2]
[334062874,1722715842522,-245.35764159,0.00013698,2]
[334062876,1722715842531,-598.38,0.00013698,2]
[334062878,1722715842540,-500.0,0.00013698,2]
[334062880,1722715842549,-500.0,0.00013698,2]
[334062881,1722715842559,-500.0,0.00013698,2]
[334062883,1722715842567,-4120.44,0.00013698,2]
[334062885,1722715842576,-1261.67,0.00013698,2]
[334062887,1722715842586,-500.0,0.00013698,2]
[334062889,1722715842596,-500.0,0.00013698,2]
[334062891,1722715842605,-500.0,0.00013698,2]
[334062893,1722715842615,-500.0,0.00013698,2]
[334062895,1722715842624,-500.0,0.00013698,2]
[334062898,1722715842633,-500.0,0.00013698,2]
[334062901,1722715842643,-506.80839058,0.00013698,2]
[334062904,1722715842654,-531.72138596,0.00013698,2]
[334062907,1722715842663,-501.97761339,0.00013698,2]
[334062910,1722715842672,-151.0,0.00013698,2]
[334062913,1722715842681,-151.0,0.00013698,2]
[334062916,1722715842693,-500.0,0.00013698,2]
[334062919,1722715842702,-500.0,0.00013698,2]
[334062921,1722715842712,-500.0,0.00013698,2]
[334062923,1722715842721,-500.0,0.00013698,2]
[334062925,1722715842731,-500.0,0.00013698,2]
[334062927,1722715842740,-2661.65,0.00013698,2]
[334062929,1722715842750,-500.0,0.00013698,2]
[334062931,1722715842759,-145.06394652,0.00013698,2]
[334062935,1722715842784,-354.93605348,0.00013698,2]
[334062937,1722715842794,-500.0,0.00013698,2]
[334062939,1722715842803,-500.0,0.00013698,2]
[334062941,1722715842816,-500.0,0.00013698,2]
[334062943,1722715842825,-500.0,0.00013698,2]
[334062945,1722715842834,-500.0,0.00013698,2]
[334062946,1722715842843,-524.83,0.00013698,2]
[334062949,1722715842854,-1102.75,0.00013698,2]
[334062952,1722715842863,-151.0,0.00013698,2]
[334062955,1722715842872,-151.0,0.00013698,2]
[334062958,1722715842882,-503.70080589,0.00013698,2]
[334062960,1722715842893,-500.0,0.00013698,2]
[334062962,1722715842903,-500.0,0.00013698,2]
[334062964,1722715842913,-1640.76,0.00013698,2]
[334062966,1722715842922,-500.0,0.00013698,2]
[334062967,1722715842932,-500.0,0.00013698,2]
[334062968,1722715842942,-151.0,0.00013698,2]
[334062969,1722715842951,-151.0,0.00013698,2]
[334062970,1722715842960,-549.11,0.00013698,2]
[334062971,1722715842969,-500.0,0.00013698,2]
[334062972,1722715842979,-500.0,0.00013698,2]
[334062973,1722715842989,-151.0,0.00013698,2]
[334062974,1722715842998,-500.0,0.00013698,2]
[334062975,1722715843007,-500.0,0.00013698,2]
[334062976,1722715843017,-500.0,0.00013698,2]
[334062977,1722715843026,-151.0,0.00013698,2]
[334062978,1722715843036,-151.0,0.00013698,2]
[334062979,1722715843045,-500.0,0.00013698,2]
[334062980,1722715843055,-500.0,0.00013698,2]
[334062981,1722715843064,-540.4,0.00013698,2]
[334062982,1722715843074,-504.83737001,0.00013698,2]
[334062983,1722715843083,-500.0,0.00013698,2]
[334062984,1722715843092,-500.0,0.00013698,2]
[334062985,1722715843101,-500.0,0.00013698,2]
[334062986,1722715843111,-287.77447618,0.00013698,2]
[334062987,1722715843120,-500.0,0.00013698,2]
[334062988,1722715843129,-500.0,0.00013698,2]
[334062990,1722715843138,-500.0,0.00013698,2]
[334062992,1722715843148,-500.0,0.00013698,2]
[334062994,1722715843157,-500.0,0.00013698,2]
[334062996,1722715843166,-500.0,0.00013698,2]
[334062997,1722715843176,-505.77134862,0.00013698,2]
[334062999,1722715843184,-500.0,0.00013698,2]
[334063001,1722715843196,-500.0,0.00013698,2]
[334063003,1722715843206,-500.0,0.00013698,2]
[334063005,1722715843215,-115.57299332,0.00013698,2]
[334063025,1722715843392,-384.42700668,0.00013698,2]
[334063027,1722715843402,-500.0,0.00013698,2]
[334063029,1722715843412,-500.0,0.00013698,2]
[334063031,1722715843421,-500.0,0.00013698,2]
[334063033,1722715843431,-500.0,0.00013698,2]
[334063035,1722715843440,-500.0,0.00013698,2]
[334063038,1722715843450,-500.0,0.00013698,2]
[334063041,1722715843460,-626.48,0.00013698,2]
[334063043,1722715843469,-1027.87,0.00013698,2]
[334063045,1722715843479,-500.0,0.00013698,2]
[334063047,1722715843488,-500.0,0.00013698,2]
[334063049,1722715843497,-455.419633,0.00013699,2]
[334063051,1722715843506,-3000.0,0.00013699,2]
[334063053,1722715843516,-151.0,0.00013872,2]
[334063054,1722715843524,-151.0,0.00013872,2]
[334063056,1722715843536,-2813.72,0.00013961,2]
[334063058,1722715843545,-151.0,0.00013962,2]
[334063059,1722715843554,-174.720438,0.00013962,2]
[334063060,1722715843563,-174.720438,0.00013962,2]
[334063061,1722715843573,-151.0,0.00013962,2]
[334063062,1722715843583,-172.91877,0.00013962,2]
[334063063,1722715843592,-172.91877,0.00013962,2]
[334063064,1722715843600,-151.0,0.00013962,2]
[334063065,1722715843610,-372.855279,0.00013962,2]
[334063066,1722715843619,-372.855279,0.00013962,2]
[334063067,1722715843628,-177.688735,0.00013962,2]
[334063068,1722715843639,-177.688735,0.00013962,2]
[334063069,1722715843648,-2813.72,0.00013971,2]
[334063070,1722715843657,-2813.72,0.00013971,2]
[334063071,1722715843666,-2813.72,0.00013971,2]
[334063072,1722715843675,-510.52449572,0.00013972,2]
[334063073,1722715843684,-500.0,0.00013972,2]
[334063074,1722715843696,-500.0,0.00013972,2]
[334063075,1722715843705,-447.8323181,0.00013972,2]
[334063076,1722715843714,-500.0,0.00013972,2]
[334063077,1722715843723,-500.0,0.00013972,2]
[334063078,1722715843732,-503.06931546,0.00013972,2]
[334063079,1722715843741,-507.20771898,0.00013972,2]
[334063080,1722715843751,-500.0,0.00013972,2]
[334063081,1722715843760,-193.34206441,0.00013972,2]
[334063082,1722715843769,-500.0,0.00013972,2]
[334063083,1722715843779,-500.0,0.00013972,2]
[334063084,1722715843789,-536.27996975,0.00013972,2]
[334063085,1722715843797,-500.0,0.00013972,2]
[334063086,1722715843807,-500.0,0.00013972,2]
[334063087,1722715843822,-500.0,0.00013972,2]
[334063088,1722715843831,-500.0,0.00013972,2]
[334063089,1722715843841,-500.0,0.00013972,2]
[334063090,1722715843850,-500.0,0.00013972,2]
[334063091,1722715843859,-500.0,0.00013972,2]
[334063092,1722715843868,-500.0,0.00013972,2]
[334063093,1722715843878,-500.0,0.00013972,2]
[334063094,1722715843888,-586.83749382,0.00013972,2]
[334063095,1722715843897,-500.0,0.00013972,2]
[334063096,1722715843907,-500.0,0.00013972,2]
[334063097,1722715843917,-257.52074105,0.00013972,2]
[334063098,1722715843927,-500.0,0.00013972,2]
[334063099,1722715843936,-500.0,0.00013972,2]
[334063100,1722715843947,-500.0,0.00013972,2]
[334063101,1722715843956,-151.0,0.00013972,2]
[334063102,1722715843965,-500.0,0.00013972,2]
[334063103,1722715843975,-500.0,0.00013972,2]
[334063104,1722715843984,-500.0,0.00013972,2]
[334063105,1722715843994,-151.0,0.00013972,2]
[334063106,1722715844004,-500.0,0.00013972,2]
[334063107,1722715844014,-500.0,0.00013972,2]
[334063108,1722715844023,-651.04,0.00013972,2]
[334063109,1722715844032,-500.0,0.00013972,2]
[334063110,1722715844041,-500.0,0.00013972,2]
[334063111,1722715844054,-500.0,0.00013972,2]
[334063112,1722715844064,-151.0,0.00013972,2]
[334063113,1722715844074,-500.0,0.00013972,2]
[334063114,1722715844083,-500.0,0.00013972,2]
[334063115,1722715844092,-500.0,0.00013972,2]
[334063116,1722715844100,-512.31653046,0.00013972,2]
[334063117,1722715844109,-500.0,0.00013972,2]
[334063118,1722715844118,-500.0,0.00013972,2]
[334063119,1722715844128,-500.0,0.00013972,2]
[334063120,1722715844137,-500.0,0.00013972,2]
[334063121,1722715844146,-500.0,0.00013972,2]
[334063122,1722715844155,-580.06,0.00013972,2]
[334063123,1722715844165,-500.0,0.00013972,2]
[334063124,1722715844174,-1094.68,0.00013972,2]
[334063125,1722715844183,-500.0,0.00013972,2]
[334063126,1722715844194,-500.0,0.00013972,2]
[334063127,1722715844203,-500.0,0.00013972,2]
[334063128,1722715844214,-500.0,0.00013972,2]
[334063129,1722715844223,-500.0,0.00013972,2]
[334063130,1722715844232,-500.0,0.00013972,2]
[334063131,1722715844242,-500.0,0.00013972,2]
[334063132,1722715844251,-151.0,0.00013972,2]
[334063133,1722715844261,-500.0,0.00013972,2]
[334063134,1722715844270,-500.0,0.00013972,2]
[334063135,1722715844280,-500.0,0.00013972,2]
[334063136,1722715844289,-500.0,0.00013972,2]
[334063137,1722715844299,-500.0,0.00013972,2]
[334063138,1722715844308,-500.0,0.00013972,2]
[334063139,1722715844318,-500.0,0.00013972,2]
[334063140,1722715844328,-151.0,0.00013972,2]
[334063141,1722715844337,-500.0,0.00013972,2]
[334063142,1722715844347,-500.0,0.00013972,2]
[334063143,1722715844356,-500.0,0.00013972,2]
[334063144,1722715844366,-500.0,0.00013972,2]
[334063145,1722715844375,-500.0,0.00013972,2]
[334063146,1722715844385,-500.0,0.00013972,2]
[334063147,1722715844394,-500.0,0.00013972,2]
[334063148,1722715844404,-472.27686227,0.00013972,2]
[334063149,1722715844413,-500.0,0.00013972,2]
[334063150,1722715844422,-500.0,0.00013972,2]
[334063151,1722715844431,-537.79,0.00013972,2]
[334063152,1722715844441,-500.0,0.00013972,2]
[334063153,1722715844456,-615.34,0.00013972,2]
[334063154,1722715844465,-500.0,0.00013972,2]
[334063155,1722715844475,-500.0,0.00013972,2]
[334063156,1722715844485,-151.0,0.00013972,2]
[334063157,1722715844495,-500.0,0.00013972,2]
[334063158,1722715844504,-183.808148,0.00013972,2]
[334063159,1722715844514,-500.0,0.00013972,2]
[334063160,1722715844524,-500.0,0.00013972,2]
[334063161,1722715844534,-587.66,0.00013972,2]
[334063162,1722715844544,-500.0,0.00013972,2]
[334063163,1722715844553,-500.0,0.00013972,2]
[334063164,1722715844563,-500.0,0.00013972,2]
[334063165,1722715844574,-196.74508319,0.00013972,2]
[334063166,1722715844583,-923.18,0.00013972,2]
[334063167,1722715844592,-500.0,0.00013972,2]
[334063168,1722715844602,-500.0,0.00013972,2]
[334063169,1722715844611,-500.0,0.00013972,2]
[334063170,1722715844621,-500.0,0.00013972,2]
[334063171,1722715844630,-500.0,0.00013972,2]
[334063172,1722715844640,-500.0,0.00013972,2]
[334063173,1722715844649,-500.0,0.00013972,2]
[334063174,1722715844659,-665.58,0.00013972,2]
[334063175,1722715844668,-500.0,0.00013972,2]
[334063176,1722715844678,-500.0,0.00013972,2]
[334063177,1722715844687,-500.0,0.00013972,2]
[334063178,1722715844700,-500.0,0.00013972,2]
[334063179,1722715844710,-500.0,0.00013972,2]
[334063180,1722715844719,-500.0,0.00013972,2]
[334063181,1722715844728,-578.15,0.00013972,2]
[334063182,1722715844738,-500.0,0.00013972,2]
[334063183,1722715844747,-500.0,0.00013972,2]
[334063184,1722715844756,-1606.39,0.00013972,2]
[334063185,1722715844766,-500.0,0.00013972,2]
[334063186,1722715844777,-174.720438,0.00013972,2]
[334063187,1722715844786,-545.73,0.00013972,2]
[334063188,1722715844795,-709.74,0.00013972,2]
[334063189,1722715844806,-174.720438,0.00013972,2]
[334063190,1722715844818,-775.73,0.00013972,2]
[334063191,1722715844827,-3897.24,0.00013972,2]
[334063192,1722715844836,-500.0,0.00013972,2]
[334063193,1722715844845,-434.61283012,0.00013972,2]
[334063195,1722715844855,-500.0,0.00013972,2]
[334063197,1722715844865,-500.0,0.00013972,2]
[334063199,1722715844874,-445.50083456,0.00013972,2]
[334063201,1722715844883,-500.0,0.00013972,2]
[334063203,1722715844894,-151.0,0.00013972,2]
[334063205,1722715844905,-172.91877,0.00013972,2]
[334063207,1722715844915,-172.91877,0.00013972,2]
[334063209,1722715844924,-1706.13,0.00013972,2]
[334063211,1722715844933,-500.0,0.00013972,2]
[334063213,1722715844943,-1328.81,0.00013972,2]
[334063215,1722715844953,-500.0,0.00013972,2]
[334063217,1722715844962,-500.0,0.00013972,2]
[334063218,1722715844971,-500.0,0.00013972,2]
[334063220,1722715844982,-500.0,0.00013972,2]
[334063222,1722715844991,-500.0,0.00013972,2]
[334063224,1722715845000,-500.0,0.00013972,2]
[334063226,1722715845010,-500.0,0.00013972,2]
[334063228,1722715845019,-500.0,0.00013972,2]
[334063230,1722715845028,-500.0,0.00013972,2]
[334063232,1722715845038,-1294.23,0.00013972,2]
[334063235,1722715845048,-1430.6,0.00013972,2]
[334063237,1722715845058,-500.0,0.00013972,2]
[334063239,1722715845067,-500.0,0.00013972,2]
[334063240,1722715845077,-4791.9,0.00013972,2]
[334063242,1722715845087,-372.855279,0.00013972,2]
[334063243,1722715845098,-372.855279,0.00013972,2]
[334063252,1722715845110,-500.0,0.00013972,2]
[334063253,1722715845209,-1922.39,0.00013972,2]
[334063254,1722715845218,-500.0,0.00013972,2]
[334063255,1722715845227,-500.0,0.00013972,2]
[334063256,1722715845238,-500.0,0.00013972,2]
[334063257,1722715845248,-529.11,0.00013972,2]
[334063258,1722715845259,-500.0,0.00013972,2]
[334063259,1722715845270,-786.88,0.00013972,2]
[334063260,1722715845281,-500.0,0.00013972,2]
[334063261,1722715845292,-500.0,0.00013972,2]
[334063262,1722715845303,-177.688735,0.00013972,2]
[334063263,1722715845314,-500.0,0.00013972,2]
[334063264,1722715845324,-177.688735,0.00013972,2]
[334063265,1722715845335,-500.0,0.00013972,2]
[334063266,1722715845345,-500.0,0.00013972,2]
[334063267,1722715845356,-500.0,0.00013972,2]
[334063268,1722715845366,-151.0,0.00013972,2]
[334063269,1722715845376,-151.0,0.00013972,2]
[334063270,1722715845386,-500.0,0.00013972,2]
[334063271,1722715845395,-500.0,0.00013972,2]
[334063272,1722715845405,-598.38,0.00013972,2]
[334063273,1722715845414,-500.0,0.00013972,2]
[334063274,1722715845423,-500.0,0.00013972,2]
[334063275,1722715845432,-4120.44,0.00013972,2]
[334063276,1722715845442,-1261.67,0.00013972,2]
[334063277,1722715845454,-500.0,0.00013972,2]
[334063278,1722715845463,-500.0,0.00013972,2]
[334063279,1722715845472,-500.0,0.00013972,2]
[334063280,1722715845483,-500.0,0.00013972,2]
[334063281,1722715845493,-500.0,0.00013972,2]
[334063282,1722715845503,-2661.65,0.00013972,2]
[334063283,1722715845512,-500.0,0.00013972,2]
[334063284,1722715845521,-500.0,0.00013972,2]
[334063285,1722715845531,-500.0,0.00013972,2]
[334063286,1722715845541,-500.0,0.00013972,2]
[334063287,1722715845550,-500.0,0.00013972,2]
[334063288,1722715845560,-511.02406958,0.00013972,2]
[334063289,1722715845569,-524.83,0.00013972,2]
[334063290,1722715845578,-1102.75,0.00013972,2]
[334063291,1722715845587,-151.0,0.00013972,2]
[334063292,1722715845597,-500.0,0.00013972,2]
[334063293,1722715845606,-1640.76,0.00013972,2]
[334063295,1722715845615,-500.0,0.00013972,2]
[334063297,1722715845624,-500.0,0.00013972,2]
[334063299,1722715845633,-151.0,0.00013972,2]
[334063300,1722715845643,-549.11,0.00013972,2]
[334063301,1722715845653,-151.0,0.00013972,2]
[334063302,1722715845662,-500.0,0.00013972,2]
[334063304,1722715845671,-500.0,0.00013972,2]
[334063306,1722715845682,-500.0,0.00013972,2]
[334063307,1722715845692,-500.0,0.00013972,2]
[334063308,1722715845709,-151.0,0.00013972,2]
[334063309,1722715845719,-151.0,0.00013972,2]
[334063311,1722715845728,-500.0,0.00013972,2]
[334063312,1722715845740,-500.0,0.00013972,2]
[334063313,1722715845749,-540.4,0.00013972,2]
[334063314,1722715845759,-354.36871326,0.00013972,2]
[334063315,1722715845770,-500.0,0.00013972,2]
[334063316,1722715845780,-500.0,0.00013972,2]
[334063318,1722715845789,-500.0,0.00013972,2]
[334063319,1722715845799,-138.25367033,0.00013972,2]
[334063323,1722715845899,-154.72922386,0.0001,2]
[334063324,1722715845908,-266.05622766,0.00013698,2]
[334063325,1722715845918,-278.01223672,0.00013972,2]
[334063326,1722715845928,-500.0,0.00013972,2]
[334063327,1722715845938,-500.0,0.00013972,2]
[334063328,1722715845954,-500.0,0.00013972,2]
[334063329,1722715845964,-1027.87,0.00013972,2]
[334063330,1722715845974,-500.0,0.00013972,2]
[334063331,1722715845984,-150.112233,0.000142,2]
[334063332,1722715845993,-2813.72,0.00014235,2]
[334063333,1722715846003,-151.0,0.00014236,2]
[334063334,1722715846012,-2089.59402529,0.00014245,2]
[334063383,1722715846644,-273.37336231,9.9e-05,2]
[334063385,1722715846653,-226.62663769,0.00013698,2]
[334063390,1722715846698,-273.37336231,0.00013698,2]
[334063392,1722715846710,-47.92515789,0.00014245,2]
[334063876,1722716827110,-191.60521383,9.319e-05,2]
[334063877,1722716827132,-191.60521383,9.701e-05,2]
[334063878,1722716827280,-58.30159898,9.827e-05,2]
[334063881,1722716836094,-241.69840102,9.729e-05,2]
[334063882,1722716836119,-97.29115235,9.827e-05,2]
[334063884,1722716954107,-300.0,9.729e-05,2]
[334063885,1722716954129,-300.0,9.826e-05,2]
[334063886,1722716954152,-4712.37284123,9.827e-05,2]
[334063887,1722716954177,-3708.48162025,9.827e-05,2]
[334063888,1722716954200,-15649.05143358,9.828e-05,2]
[334063986,1722717032436,-300.0,9.632e-05,2]
[334063988,1722717032446,-300.0,9.826e-05,2]
[334063990,1722717032455,-52.22951312,9.827e-05,2]
[334063993,1722717032466,-838.51982186,9.827e-05,2]
[334063995,1722717032475,-738.58105149,9.827e-05,2]